bitfinex/quotes_SOLUSD_20250903
["timestamp","ask_amount","ask_price","bid_price","bid_amount"]
[1756908145620,0.06,212.39,212.33,26.0]
[1756908145789,0.06,212.39,212.36,11.6626803]
[1756908146103,0.06,212.39,212.34,4.70942827]
[1756908146104,0.06,212.39,212.38,11.6626803]
[1756908146512,0.06,212.39,212.35,11.6626803]
[1756908146716,0.06,212.39,212.36,12.3626803]
[1756908146897,0.06,212.39,212.37,11.6626803]
[1756908147205,0.06,212.39,212.38,16.37122159]
[1756908147400,0.06,212.39,212.38,4.70854129]
[1756908147985,0.06,212.39,212.37,11.6626803]
[1756908147986,0.06,212.39,212.35,11.6626803]
[1756908148189,0.7,212.38,212.32,11.6626803]
[1756908148415,11.6626803,212.37,212.31,4.71009373]
[1756908148619,11.6626803,212.36,212.31,4.71009373]
[1756908148990,0.7,212.38,212.31,17.07277403]
[1756908149307,12.3626803,212.38,212.33,4.70965007]
[1756908149610,0.06,212.39,212.33,4.70965007]
[1756908149811,0.06,212.39,212.35,11.6626803]
[1756908150005,0.06,212.39,212.37,11.6626803]
[1756908150196,0.06,212.39,212.34,0.7]
[1756908150509,0.76,212.39,212.33,16.48377525]
[1756908150710,12.4226803,212.39,212.32,4.70985352]
[1756908150914,12.4226803,212.39,212.32,16.37253382]
[1756908151396,11.6626803,212.38,212.32,16.37253382]
[1756908151603,11.6626803,212.37,212.32,4.70985352]
[1756908152117,0.76,212.39,212.32,16.37253382]
[1756908152300,11.6626803,212.38,212.32,16.37253382]
[1756908152503,11.6626803,212.35,212.32,4.70985352]
[1756908152720,11.6626803,212.33,212.3,4.74027344]
[1756908153210,11.6626803,212.35,212.3,4.74027344]
[1756908153408,11.6626803,212.34,212.3,0.03]
[1756908153804,0.76,212.39,212.31,12.3626803]
[1756908154003,0.06,212.39,212.31,26.7]
[1756908154208,0.06,212.39,212.34,11.6626803]
[1756908154407,11.7226803,212.39,212.33,11.6626803]
[1756908154605,0.76,212.39,212.31,26.0]
[1756908154802,0.06,212.39,212.34,11.6626803]
[1756908155005,0.06,212.39,212.32,0.7]
[1756908155304,11.7226803,212.39,212.31,26.0]
[1756908155507,11.6626803,212.36,212.3,11.6926803]
[1756908155822,11.6626803,212.35,212.3,0.03]
[1756908156601,11.6626803,212.32,212.3,0.03]
[1756908156806,11.6626803,212.31,212.3,0.03]
[1756908157007,0.7,212.32,212.3,0.03]
[1756908157218,11.6626803,212.33,212.3,0.03]
[1756908157523,26.0,212.36,212.31,4.71009373]
[1756908157524,7.91521209,212.36,212.31,4.71009373]
[1756908157705,0.7,212.36,212.31,4.71009373]
[1756908157905,8.61521209,212.35,212.31,4.71009373]
[1756908158327,8.61521209,212.34,212.3,4.74026727]
[1756908158528,0.7,212.34,212.3,4.74026727]
[1756908158715,7.91521209,212.32,212.3,0.03]
[1756908159025,8.61521209,212.31,212.3,0.03]
[1756908159513,26.0,212.29,212.28,0.1]
[1756908159714,38.62574956,212.29,212.27,0.03]
[1756908159922,38.62574956,212.29,212.16,4.71342383]
[1756908159923,13.59559401,212.27,212.16,4.71342383]
[1756908160125,7.91521209,212.17,212.15,0.1]
[1756908160304,7.91521209,212.16,212.15,0.1]
[1756908160918,0.7,212.19,212.15,0.1]
[1756908161126,0.7,212.19,212.15,4.81355315]
[1756908161324,7.91521209,212.19,212.15,4.81355315]
[1756908161822,7.91521209,212.18,212.15,4.81355315]
[1756908162028,7.91521209,212.18,212.15,4.81344967]
[1756908162222,26.0,212.23,212.15,4.81344967]
[1756908162413,7.91521209,212.18,212.15,0.1]
[1756908162802,7.91521209,212.16,212.15,0.1]
[1756908163006,8.61521209,212.16,212.15,0.1]
[1756908163720,26.92422993,212.16,212.15,0.1]
[1756908165107,47.5108061,212.13,212.12,0.03]
[1756908165430,26.0,212.09,212.08,0.1]
[1756908165633,13.59559401,212.08,212.05,0.03]
[1756908165837,21.5108061,212.07,212.05,0.03]
[1756908166336,39.59559401,212.03,212.0,0.03]
[1756908166637,26.0,212.05,212.0,0.03]
[1756908166936,7.91521209,212.03,212.0,0.03]
[1756908167119,8.61521209,212.03,212.0,0.03]
[1756908167712,62.0708061,212.03,212.0,0.03]
[1756908167910,66.78711982,212.03,212.0,0.03]
[1756908168235,62.0708061,212.03,212.0,0.03]
[1756908168434,66.78711982,212.03,212.0,0.03]
[1756908168817,13.59559401,212.02,212.0,0.03]
[1756908169024,7.91521209,212.01,212.0,0.03]
[1756908169231,22.2108061,212.01,212.0,0.03]
[1756908169534,22.2108061,212.01,211.89,0.73]
[1756908169535,26.0,211.96,211.89,0.03]
[1756908169745,7.91521209,211.91,211.89,0.03]
[1756908170340,7.91521209,211.9,211.89,0.03]
[1756908170714,26.7,211.96,211.89,0.03]
[1756908170916,65.82,211.98,211.89,0.73]
[1756908171227,7.91521209,211.95,211.89,8.64521209]
[1756908171428,7.91521209,211.96,211.9,0.7]
[1756908171631,26.0,211.97,211.91,4.71898447]
[1756908171941,7.91521209,211.95,211.91,4.71898447]
[1756908172129,7.91521209,211.96,211.92,0.7]
[1756908172518,0.7,211.95,211.89,0.03]
[1756908172746,7.91521209,211.91,211.89,0.03]
[1756908173239,0.7,211.95,211.89,4.74939098]
[1756908173447,39.59559401,211.98,211.89,4.74939098]
[1756908173620,7.91521209,211.94,211.89,4.74939098]
[1756908174017,7.91521209,211.94,211.9,0.7]
[1756908174314,0.7,211.97,211.89,4.74939098]
[1756908174529,7.91521209,211.95,211.9,0.7]
[1756908174725,7.91521209,211.92,211.89,0.03]
[1756908175032,0.7,211.92,211.89,0.03]
[1756908175239,7.91521209,211.92,211.89,0.03]
[1756908175614,0.7,211.94,211.89,0.03]
[1756908175814,7.91521209,211.9,211.89,0.03]
[1756908176222,8.61521209,211.9,211.89,0.03]
[1756908177111,0.7,211.9,211.89,0.03]
[1756908177317,8.61521209,211.9,211.89,0.03]
[1756908177641,39.74,211.91,211.89,0.03]
[1756908177819,7.91521209,211.9,211.89,0.03]
[1756908178026,8.61521209,211.9,211.89,0.03]
[1756908178233,14.29559401,211.9,211.89,0.03]
[1756908178420,22.2108061,211.9,211.89,0.03]
[1756908178622,0.7,211.9,211.89,0.03]
[1756908178821,8.61521209,211.9,211.89,0.03]
[1756908179530,7.91521209,211.9,211.89,0.03]
[1756908180019,8.61521209,211.9,211.89,0.03]
[1756908180215,13.33441926,211.9,211.89,0.03]
[1756908180423,26.93001327,211.9,211.89,0.03]
[1756908181025,22.2108061,211.9,211.89,0.03]
[1756908181231,61.8908061,211.9,211.89,0.03]
[1756908181741,66.61001327,211.9,211.89,0.03]
[1756908181941,61.8908061,211.9,211.89,0.03]
[1756908182440,66.61001327,211.9,211.89,0.03]
[1756908183016,61.8908061,211.9,211.89,0.03]
[1756908184346,65.62,211.9,211.89,0.03]
[1756908184545,26.0,211.9,211.89,0.03]
[1756908184743,7.91521209,211.93,211.89,0.73]
[1756908184942,47.53521209,211.94,211.89,0.73]
[1756908185244,7.91521209,211.95,211.9,8.61521209]
[1756908185457,39.62,212.0,211.93,7.91521209]
[1756908185657,40.32,212.0,211.91,0.7]
[1756908185826,7.91521209,211.92,211.89,0.03]
[1756908186030,33.91521209,211.9,211.89,0.03]
[1756908186244,21.5108061,211.9,211.89,0.03]
[1756908186548,22.2108061,211.9,211.89,0.03]
[1756908186723,48.2108061,211.9,211.89,0.03]
[1756908186924,22.2108061,211.9,211.89,0.03]
[1756908187124,48.2108061,211.9,211.89,0.03]
[1756908187435,22.2108061,211.9,211.89,0.03]
[1756908187634,47.5108061,211.9,211.89,0.03]
[1756908187830,48.2108061,211.9,211.89,0.03]
[1756908188020,52.93001327,211.9,211.89,0.03]
[1756908188448,45.01480118,211.9,211.89,0.03]
[1756908188632,48.2108061,211.9,211.89,0.03]
[1756908188833,52.93001327,211.9,211.89,0.03]
[1756908189028,33.91521209,211.9,211.89,0.03]
[1756908189222,73.55521209,211.9,211.89,0.03]
[1756908189448,39.59559401,211.87,211.86,0.03]
[1756908189628,91.85068149,211.87,211.86,0.03]
[1756908189954,92.55068149,211.87,211.86,0.03]
[1756908190846,48.2108061,211.87,211.86,0.03]
[1756908191160,87.1708061,211.87,211.86,0.03]
[1756908191482,87.8708061,211.87,211.86,0.03]
[1756908191829,7.91521209,211.87,211.86,0.03]
[1756908192042,73.55521209,211.87,211.86,0.03]
[1756908192322,47.55521209,211.87,211.86,0.03]
[1756908192934,13.59559401,211.93,211.86,0.71]
[1756908193144,7.91521209,211.9,211.86,0.71]
[1756908193346,39.62,211.92,211.86,0.03]
[1756908193555,7.91521209,211.89,211.86,0.71]
[1756908193758,7.91521209,211.89,211.88,4.71965263]
[1756908194152,7.91521209,211.89,211.88,5.39965263]
[1756908194457,7.91521209,211.91,211.88,0.68]
[1756908194633,7.91521209,211.91,211.89,0.68]
[1756908194828,7.91521209,211.91,211.9,0.68]
[1756908195255,7.91521209,211.92,211.9,0.68]
[1756908195463,7.91521209,211.96,211.9,8.59521209]
[1756908195639,7.91521209,211.96,211.87,4.71984048]
[1756908195640,7.91521209,211.97,211.91,8.59521209]
[1756908195963,7.91521209,211.97,211.92,4.71876179]
[1756908196135,0.71,212.05,211.94,7.91521209]
[1756908196336,7.91521209,211.95,211.91,0.68]
[1756908196535,7.91521209,211.95,211.87,26.0]
[1756908196536,7.91521209,211.92,211.87,0.68]
[1756908196747,7.91521209,211.9,211.87,0.68]
[1756908196962,7.91521209,211.89,211.86,0.03]
[1756908197166,7.91521209,211.89,211.87,0.68]
[1756908197538,26.0,211.96,211.88,0.68]
[1756908197734,7.91521209,211.96,211.9,12.63441926]
[1756908197958,7.91521209,211.96,211.9,8.59521209]
[1756908198137,7.91521209,211.95,211.9,0.68]
[1756908198334,7.91521209,211.96,211.91,0.68]
[1756908198563,7.91521209,211.95,211.92,0.68]
[1756908198767,7.91521209,211.94,211.89,0.71]
[1756908198948,7.91521209,211.95,211.9,0.68]
[1756908199140,7.91521209,211.95,211.91,0.68]
[1756908199461,7.91521209,211.95,211.92,0.68]
[1756908200163,4.71746918,211.98,211.93,0.68]
[1756908200164,7.91521209,211.98,211.93,0.68]
[1756908200364,0.06,212.0,211.95,7.91521209]
[1756908200534,7.97521209,212.0,211.94,8.59521209]
[1756908200736,7.91521209,211.99,211.94,0.68]
[1756908201160,7.91521209,211.98,211.94,0.68]
[1756908201464,7.91521209,211.97,211.91,0.68]
[1756908201761,7.91521209,211.95,211.91,0.68]
[1756908202057,7.91521209,211.96,211.92,0.68]
[1756908202360,47.57521209,212.0,211.93,0.68]
[1756908202662,39.66,212.0,211.93,8.59521209]
[1756908202864,7.91521209,211.99,211.93,8.59521209]
[1756908203066,47.57521209,212.0,211.94,7.91521209]
[1756908204264,0.06,212.0,211.96,7.91521209]
[1756908204469,0.06,212.0,211.97,8.59521209]
[1756908204768,0.06,212.0,211.99,7.91521209]
[1756908205071,0.06,212.05,212.02,26.0]
[1756908205538,0.06,212.05,212.04,7.91521209]
[1756908206059,0.06,212.05,212.04,8.59521209]
[1756908206361,0.06,212.05,211.98,0.68]
[1756908206563,0.06,212.05,211.99,7.91521209]
[1756908206752,7.97521209,212.05,211.99,7.91521209]
[1756908207065,7.91521209,212.04,211.99,4.76584602]
[1756908207269,7.91521209,212.04,211.98,7.91521209]
[1756908207445,0.06,212.05,211.98,7.91521209]
[1756908207644,7.91521209,212.04,211.98,7.91521209]
[1756908207846,7.91521209,212.04,211.97,8.59521209]
[1756908208069,0.06,212.05,211.98,4.71736049]
[1756908208360,7.91521209,212.03,211.98,4.71736049]
[1756908208566,7.91521209,212.01,211.96,4.71776955]
[1756908208744,7.91521209,212.01,211.96,5.39776955]
[1756908209063,0.71,212.03,211.96,5.39776955]
[1756908209365,7.91521209,212.01,211.96,10.22522976]
[1756908209573,7.91521209,212.02,211.97,0.68]
[1756908209748,7.91521209,212.04,211.98,7.91521209]
[1756908209941,7.91521209,212.04,211.98,8.59521209]
[1756908210147,7.91521209,212.04,211.99,4.71720364]
[1756908210359,0.06,212.05,211.99,4.71720364]
[1756908210675,7.91521209,212.03,211.97,7.91521209]
[1756908211177,7.91521209,212.01,211.96,4.71780187]
[1756908211974,8.62521209,212.01,211.96,4.71780187]
[1756908212144,0.71,212.04,211.96,13.31301396]
[1756908212344,7.91521209,212.02,211.96,13.31301396]
[1756908212559,7.91521209,212.03,211.96,13.31301396]
[1756908213060,7.91521209,212.02,211.96,13.31301396]
[1756908213244,7.91521209,211.97,211.9,12.63441926]
[1756908213445,7.91521209,211.95,211.9,4.71920717]
[1756908213644,0.71,211.99,211.9,12.63441926]
[1756908213872,0.71,211.99,211.9,4.71920717]
[1756908214049,0.71,211.99,211.9,12.63441926]
[1756908214257,7.91521209,211.96,211.9,12.63441926]
[1756908214472,7.91521209,211.96,211.9,24.43243719]
[1756908214684,0.77,212.05,211.94,26.0]
[1756908214866,0.77,212.05,211.97,7.91521209]
[1756908215166,7.91521209,212.01,211.95,8.59521209]
[1756908215343,7.91521209,212.01,211.9,21.31155723]
[1756908215344,7.91521209,212.0,211.93,26.0]
[1756908215667,0.71,212.0,211.92,0.68]
[1756908215845,7.91521209,211.97,211.92,0.68]
[1756908216043,0.71,212.04,211.96,7.91521209]
[1756908216254,0.06,212.05,212.0,7.91521209]
[1756908216438,0.06,212.05,212.0,8.59521209]
[1756908216638,0.06,212.05,212.02,7.91521209]
[1756908216844,0.06,212.05,212.04,7.91521209]
[1756908217062,1e-08,212.05,212.04,87.6708061]
[1756908217565,1e-08,212.05,212.04,91.47651422]
[1756908217865,0.06,212.16,212.07,26.0]
[1756908218167,11.78092021,212.16,212.12,4.71431265]
[1756908218354,0.06,212.16,212.12,16.43523286]
[1756908218663,0.06,212.16,212.12,17.11523286]
[1756908219447,0.06,212.16,212.12,5.39431265]
[1756908219649,0.06,212.16,212.09,0.68]
[1756908219848,11.72092021,212.14,212.08,39.46]
[1756908220147,12.43092021,212.15,212.1,4.71475719]
[1756908220363,12.49092021,212.13,212.08,4.71516619]
[1756908220550,11.72092021,212.09,212.04,4.7160913]
[1756908220745,12.43092021,212.08,212.01,51.16092021]
[1756908220962,11.72092021,212.07,212.02,11.72092021]
[1756908221544,11.72092021,212.07,212.01,44.15667942]
[1756908221545,12.43092021,212.07,212.01,55.87759963]
[1756908221965,11.72092021,212.06,212.0,39.42]
[1756908222169,11.72092021,212.04,211.98,51.14092021]
[1756908222550,11.72092021,212.08,212.02,11.72092021]
[1756908223362,11.72092021,212.06,212.0,11.72092021]
[1756908223556,0.69,212.07,211.99,77.14092021]
[1756908223761,12.41092021,212.07,211.99,65.42]
[1756908223966,0.69,212.1,212.02,11.72092021]
[1756908224150,0.69,212.1,212.04,11.72092021]
[1756908224356,37.72092021,212.11,212.05,11.72092021]
[1756908224564,26.0,212.11,212.05,11.72092021]
[1756908224745,11.72092021,212.11,212.05,11.72092021]
[1756908225563,11.72092021,212.09,212.02,11.72092021]
[1756908225746,11.72092021,212.09,212.03,51.12092021]
[1756908225952,12.41092021,212.1,212.04,16.43701151]
[1756908226569,26.75,212.13,212.04,4.7160913]
[1756908226760,11.72092021,212.11,212.04,16.50631955]
[1756908227071,11.72092021,212.1,212.04,16.43701151]
[1756908227253,0.06,212.13,212.07,11.72092021]
[1756908227569,0.06,212.13,212.12,11.72092021]
[1756908227952,0.06,212.13,212.09,11.72092021]
[1756908228153,11.78092021,212.13,212.08,39.4]
[1756908228352,11.78092021,212.13,212.06,4.71564651]
[1756908228353,11.72092021,212.11,212.06,4.71564651]
[1756908228654,0.06,212.13,212.05,4.71583445]
[1756908228655,11.72092021,212.09,212.05,4.71583445]
[1756908228856,12.41092021,212.08,212.02,37.72092021]
[1756908229056,11.72092021,212.06,212.01,44.11675864]
[1756908229469,12.41092021,212.06,212.01,44.11675864]
[1756908229779,12.41092021,212.06,212.01,4.71675864]
[1756908230076,4.71525908,212.08,212.0,39.4]
[1756908230276,11.72092021,212.05,212.0,44.11688558]
[1756908230581,12.41092021,212.06,212.0,56.53780579]
[1756908230767,11.72092021,212.05,212.0,44.11688558]
[1756908230972,11.72092021,212.04,212.0,39.4]
[1756908231161,0.69,212.03,211.98,11.72092021]
[1756908231357,0.69,212.09,211.97,39.4]
[1756908231562,0.06,212.13,212.08,11.72092021]
[1756908231864,0.06,212.13,212.01,13.59559401]
[1756908231865,0.06,212.13,212.09,11.72092021]
[1756908232073,0.06,212.13,212.1,4.71475719]
[1756908232273,0.06,212.13,212.1,16.4356774]
[1756908232779,0.06,212.13,212.09,11.72092021]
[1756908232982,0.06,212.13,212.06,39.4]
[1756908233155,12.47092021,212.13,212.02,0.7]
[1756908233360,12.47092021,212.13,212.05,11.72092021]
[1756908233361,11.72092021,212.11,212.05,11.72092021]
[1756908233660,11.72092021,212.1,212.04,11.72092021]
[1756908233880,11.72092021,212.1,212.01,26.0]
[1756908234190,11.72092021,212.06,211.99,51.12092021]
[1756908234487,12.41092021,212.07,211.98,40.1]
[1756908234685,11.72092021,212.06,212.0,11.72092021]
[1756908235063,11.72092021,212.06,211.98,40.1]
[1756908235365,11.72092021,212.06,212.01,4.71675864]
[1756908235566,11.72092021,212.06,211.97,39.4]
[1756908235567,11.72092021,212.04,211.97,39.4]
[1756908235762,11.72092021,212.04,212.02,0.03]
[1756908235963,0.69,212.05,212.02,0.03]
[1756908236271,12.41092021,212.05,212.02,0.03]
[1756908236472,0.69,212.05,212.02,0.03]
[1756908237075,11.72092021,212.03,212.02,0.03]
[1756908237286,12.41092021,212.04,212.02,0.03]
[1756908237483,0.06,212.16,212.03,51.12092021]
[1756908237681,0.69,212.15,212.1,11.72092021]
[1756908237991,11.72092021,212.14,212.04,0.7]
[1756908238192,11.72092021,212.14,212.08,11.72092021]
[1756908238363,11.78092021,212.16,212.1,11.72092021]
[1756908238663,0.06,212.16,212.11,11.72092021]
[1756908238864,0.06,212.16,212.1,11.72092021]
[1756908239075,11.78092021,212.16,212.1,11.72092021]
[1756908239281,11.72092021,212.14,212.05,40.16]
[1756908239574,12.47092021,212.13,212.07,11.72092021]
[1756908240262,11.72092021,212.11,212.06,4.71564651]
[1756908240468,0.69,212.1,212.02,16.46743615]
[1756908240667,26.06,212.13,212.08,11.72092021]
[1756908240886,0.06,212.13,212.1,11.72092021]
[1756908241190,0.06,212.13,212.09,11.72092021]
[1756908241785,0.06,212.13,212.1,11.72092021]
[1756908242173,0.06,212.13,212.11,11.72092021]
[1756908242377,0.06,212.13,212.12,11.72092021]
[1756908243088,0.06,212.13,212.12,12.42092021]
[1756908243688,0.06,212.13,212.12,17.13523286]
[1756908244782,0.06,212.13,212.12,5.41431265]
[1756908244981,0.06,212.13,212.12,17.13523286]
[1756908245495,0.06,212.16,212.15,11.72092021]
[1756908245684,0.06,212.16,212.15,55.83456621]
[1756908245884,1e-08,212.16,212.15,70.13016022]
[1756908246769,1e-08,212.16,212.15,5.413646]
[1756908246969,1e-08,212.16,212.15,56.53456621]
[1756908247368,1e-08,212.16,212.15,70.13016022]
[1756908247566,0.06,212.18,212.15,70.13016022]
[1756908247567,1e-08,212.18,212.17,39.59559401]
[1756908247772,1e-08,212.18,212.17,56.02971589]
[1756908247976,1e-08,212.18,212.17,56.72971589]
[1756908248193,0.2,212.22,212.17,68.79704322]
[1756908248194,1e-08,212.22,212.17,68.79704322]
[1756908248491,0.2,212.33,212.26,13.59559401]
[1756908248682,0.2,212.33,212.32,11.72092021]
[1756908248890,0.2,212.33,212.3,51.10092021]
[1756908249184,0.2,212.33,212.31,39.38]
[1756908249384,0.2,212.33,212.32,11.72092021]
[1756908249791,0.2,212.33,212.32,17.1307921]
[1756908249988,0.2,212.33,212.32,16.4307921]
[1756908250294,1e-08,212.33,212.32,17.1307921]
[1756908250497,1e-08,212.33,212.32,42.44730632]
[1756908250683,1e-08,212.33,212.32,19.0054659]
[1756908250885,1e-08,212.33,212.32,42.44730632]
[1756908251401,1e-08,212.33,212.32,47.25431973]
[1756908251896,1e-08,212.33,212.32,74.91339952]
[1756908252273,1e-08,212.33,212.32,86.63431973]
[1756908252988,1e-08,212.35,212.34,13.59559401]
[1756908253177,0.06,212.39,212.35,39.59559401]
[1756908253378,0.06,212.39,212.38,11.72092021]
[1756908253896,0.06,212.39,212.38,17.1394615]
[1756908254098,0.06,212.39,212.38,4.70854129]
[1756908254301,0.06,212.39,212.38,17.1394615]
[1756908254506,0.06,212.39,212.38,16.4294615]
[1756908254799,0.06,212.39,212.38,55.7894615]
[1756908255007,0.06,212.39,212.38,16.4294615]
[1756908255203,0.06,212.39,212.38,55.7894615]
[1756908255412,0.06,212.39,212.35,30.70915424]
[1756908255606,0.06,212.39,212.38,11.72092021]
[1756908255909,0.06,212.39,212.38,16.4294615]
[1756908256084,0.06,212.39,212.38,55.7894615]
[1756908256885,0.06,212.39,212.38,44.06854129]
[1756908257087,0.06,212.39,212.38,55.7894615]
[1756908257288,0.06,212.39,212.38,51.08092021]
[1756908257503,0.06,212.39,212.36,4.70885775]
[1756908257684,0.06,212.39,212.37,51.08092021]
[1756908258010,0.06,212.39,212.38,11.72092021]
[1756908258191,0.77,212.39,212.38,39.36]
[1756908258503,0.77,212.39,212.37,11.72092021]
[1756908258703,0.77,212.39,212.38,39.36]
[1756908258906,0.06,212.39,212.38,39.36]
[1756908259090,0.77,212.39,212.38,39.36]
[1756908260101,0.06,212.39,212.38,44.06854129]
[1756908260405,0.06,212.39,212.38,55.7894615]
[1756908261896,0.06,212.39,212.38,51.08092021]
[1756908262087,0.77,212.39,212.33,4.70965007]
[1756908262288,0.77,212.39,212.34,39.34]
[1756908262509,0.06,212.39,212.36,11.72092021]
[1756908262693,0.06,212.39,212.38,11.72092021]
[1756908263219,0.06,212.39,212.38,12.43092021]
[1756908264022,0.06,212.39,212.38,30.73505551]
[1756908264527,0.06,212.39,212.38,70.04854129]
[1756908264692,0.06,212.39,212.38,42.4294615]
[1756908264891,0.06,212.39,212.38,55.7694615]
[1756908265615,0.06,212.39,212.38,44.04854129]
[1756908265927,0.06,212.39,212.38,16.4294615]
[1756908266210,0.06,212.39,212.38,55.7694615]
[1756908266902,0.06,212.42,212.38,81.84640874]
[1756908267099,0.06,212.42,212.41,11.72092021]
[1756908267292,0.06,212.42,212.41,51.06092021]
[1756908267615,0.06,212.42,212.41,51.77092021]
[1756908267810,0.06,212.42,212.41,56.47879648]
[1756908268196,0.06,212.44,212.41,56.47879648]
[1756908268398,0.06,212.44,212.42,0.71]
[1756908268589,0.06,212.44,212.43,11.72092021]
[1756908269002,0.06,212.44,212.43,51.04092021]
[1756908269187,0.06,212.44,212.43,11.72092021]
[1756908269387,0.06,212.44,212.43,51.04092021]
[1756908269800,0.06,212.44,212.43,44.02743303]
[1756908270115,0.06,212.44,212.43,51.04092021]
[1756908270510,0.06,212.44,212.43,39.32]
[1756908270816,0.06,212.44,212.43,51.04092021]
[1756908271204,0.06,212.44,212.43,39.32]
[1756908271415,0.06,212.44,212.43,51.04092021]
[1756908272000,0.77,212.44,212.43,39.32]
[1756908272200,0.77,212.44,212.4,42.42880581]
[1756908272402,0.06,212.44,212.41,39.32]
[1756908272713,0.06,212.42,212.41,40.03]
[1756908273130,0.06,212.42,212.41,39.32]
[1756908273913,0.06,212.42,212.41,51.04092021]
[1756908274114,0.06,212.42,212.41,55.74879648]
[1756908274313,0.06,212.42,212.41,39.32]
[1756908274709,0.06,212.42,212.39,26.0]
[1756908275017,0.06,212.42,212.41,39.32]
[1756908275518,0.06,212.42,212.36,0.71]
[1756908275519,12.49092021,212.42,212.36,37.72092021]
[1756908275695,12.49092021,212.42,212.37,39.3]
[1756908275902,0.06,212.42,212.37,51.73092021]
[1756908276116,0.06,212.42,212.38,55.7294615]
[1756908276497,0.06,212.42,212.39,11.72092021]
[1756908276703,0.06,212.42,212.41,11.72092021]
[1756908277001,0.06,212.42,212.4,51.02092021]
[1756908277305,0.06,212.42,212.41,26.02651422]
[1756908278010,0.06,212.42,212.41,16.42879648]
[1756908278927,0.06,212.42,212.41,96.03439049]
[1756908279230,0.06,212.42,212.41,84.31347028]
[1756908279540,0.06,212.42,212.41,30.70787627]
[1756908279833,0.06,212.42,212.37,0.78968]
[1756908280138,0.06,212.42,212.41,4.70787627]
[1756908280436,0.06,212.42,212.41,39.3]
[1756908280798,0.06,212.42,212.37,0.07968]
[1756908280799,8.67498646,212.42,212.37,0.07968]
[1756908281002,7.90498646,212.38,212.37,0.07968]
[1756908281421,8.61498646,212.38,212.37,0.07968]
[1756908282100,13.32352775,212.38,212.37,0.07968]
[1756908282538,34.82410822,212.38,212.37,0.07968]
[1756908282717,39.59559401,212.36,212.35,0.03]
[1756908282903,39.59559401,212.36,212.32,0.03]
[1756908282904,13.59559401,212.35,212.32,0.03]
[1756908283098,7.90498646,212.33,212.32,0.03]
[1756908283625,8.62498646,212.33,212.32,0.03]
[1756908283815,7.90498646,212.34,212.32,0.03]
[1756908284004,8.62498646,212.36,212.32,39.33]
[1756908284507,7.90498646,212.37,212.32,39.33]
[1756908284722,7.90498646,212.36,212.32,39.33]
[1756908284917,7.90498646,212.36,212.32,44.0398276]
[1756908285221,8.62498646,212.37,212.32,44.0398276]
[1756908285425,7.90498646,212.39,212.33,7.90498646]
[1756908285633,7.90498646,212.41,212.35,7.90498646]
[1756908285923,7.96498646,212.42,212.36,39.3]
[1756908286126,7.96498646,212.42,212.37,4.708763]
[1756908286303,0.06,212.42,212.37,12.61374946]
[1756908286503,0.06,212.42,212.39,7.90498646]
[1756908286704,0.06,212.42,212.4,39.3]
[1756908288330,0.06,212.42,212.41,39.3]
[1756908288806,8.68498646,212.42,212.41,39.3]
[1756908289012,8.68498646,212.42,212.39,4.7083196]
[1756908289227,8.68498646,212.42,212.39,44.0083196]
[1756908290616,0.06,212.42,212.39,44.0083196]
[1756908291226,0.06,212.42,212.41,7.90498646]
[1756908291721,0.06,212.42,212.41,8.60498646]
[1756908291926,0.06,212.42,212.41,13.31286273]
[1756908294229,0.06,212.42,212.41,12.61286273]
[1756908294541,0.06,212.42,212.41,43.98787627]
[1756908294912,0.78,212.42,212.37,19.67682864]
[1756908295113,0.78,212.42,212.38,39.28]
[1756908295334,0.06,212.42,212.38,63.66488098]